bitfinex/quotes_SOLUSD_20250313
["timestamp","ask_amount","ask_price","bid_price","bid_amount"]
[1741883218490,18.64964886,123.27,123.22,36.99852622]
[1741883218691,55.64817508,123.27,123.22,36.99852622]
[1741883218892,36.99852622,123.26,123.2,46.77562622]
[1741883219092,36.99852622,123.25,123.2,38.65902622]
[1741883219289,36.99852622,123.26,123.2,46.77582622]
[1741883219693,36.99852622,123.26,123.21,36.99852622]
[1741883220001,36.99852622,123.26,123.2,46.77582622]
[1741883220202,36.99852622,123.27,123.21,36.99852622]
[1741883220391,55.64817508,123.29,123.23,36.99852622]
[1741883220590,36.99852622,123.28,123.23,36.99852622]
[1741883220800,36.99852622,123.27,123.22,36.99852622]
[1741883221006,36.99852622,123.26,123.21,36.99852622]
[1741883221217,36.99852622,123.25,123.2,9.7773]
[1741883221393,55.64817508,123.26,123.2,45.11532622]
[1741883221585,36.99852622,123.26,123.21,36.99852622]
[1741883221785,57.41454283,123.3,123.21,36.99852622]
[1741883221786,82.1,123.29,123.21,36.99852622]
[1741883221982,36.99852622,123.27,123.22,36.99852622]
[1741883223107,36.99852622,123.27,123.21,56.99852622]
[1741883223500,18.64964886,123.28,123.23,36.99852622]
[1741883223699,12.44767818,123.3,123.24,36.99852622]
[1741883223899,12.44767818,123.3,123.21,20.0]
[1741883223900,26.86964886,123.3,123.25,36.99852622]
[1741883224099,0.14216157,123.32,123.25,36.99852622]
[1741883224417,55.64817508,123.32,123.27,8.1122]
[1741883224612,36.99852622,123.31,123.26,45.11112622]
[1741883224815,36.99852622,123.3,123.25,45.11182622]
[1741883225108,26.75864886,123.32,123.24,14.4983]
[1741883225109,36.99852622,123.28,123.24,14.4983]
[1741883225335,36.99852622,123.27,123.24,14.4983]
[1741883225698,36.99852622,123.28,123.24,14.4983]
[1741883225906,36.99852622,123.3,123.25,36.99852622]
[1741883226299,36.99852622,123.3,123.26,8.1129]
[1741883227425,36.99852622,123.29,123.24,43.38282622]
[1741883227627,36.99852622,123.29,123.25,8.1134]
[1741883228112,36.99852622,123.28,123.25,8.1134]
[1741883228315,36.99852622,123.29,123.25,8.1134]
[1741883229616,36.99852622,123.32,123.25,28.3973]
[1741883229918,4.11389804,123.33,123.28,36.99852622]
[1741883229919,36.99852622,123.33,123.28,36.99852622]
[1741883230124,4.1198811,123.34,123.29,36.99852622]
[1741883230301,23.12625674,123.35,123.31,8.1096]
[1741883230620,23.12625674,123.36,123.31,31.23585674]
[1741883231115,23.12625674,123.34,123.29,23.12625674]
[1741883232209,23.12625674,123.35,123.28,28.3906]
[1741883232417,37.0030054,123.35,123.3,37.0030054]
[1741883232611,37.0030054,123.34,123.29,37.0030054]
[1741883232818,37.0030054,123.33,123.28,45.1146054]
[1741883233012,37.0030054,123.33,123.29,37.0030054]
[1741883233323,37.0030054,123.34,123.29,37.0030054]
[1741883233711,37.0030054,123.32,123.27,53.3549054]
[1741883233911,37.0030054,123.31,123.27,8.1119]
[1741883234112,37.0030054,123.31,123.26,45.1156054]
[1741883234424,37.0030054,123.31,123.25,8.1133]
[1741883234613,37.0030054,123.31,123.26,37.0030054]
[1741883235125,37.0030054,123.3,123.25,45.1163054]
[1741883235424,37.0030054,123.29,123.24,51.5012054]
[1741883236906,37.0030054,123.3,123.25,37.0030054]
[1741883237122,37.0030054,123.3,123.26,37.0030054]
[1741883237311,37.0030054,123.31,123.26,37.0030054]
[1741883237716,37.0030054,123.3,123.26,37.0030054]
[1741883238024,37.0030054,123.3,123.25,37.0030054]
[1741883238233,12.11261959,123.32,123.26,37.0030054]
[1741883238234,37.0030054,123.31,123.26,37.0030054]
[1741883238808,37.0030054,123.3,123.26,37.0030054]
[1741883239417,37.0030054,123.3,123.26,45.1154054]
[1741883239623,8.1097,123.31,123.26,45.1154054]
[1741883239624,45.1127054,123.31,123.26,45.1154054]
[1741883239830,37.0030054,123.3,123.26,8.1124]
[1741883240016,37.0030054,123.3,123.25,45.1163054]
[1741883241432,63.76235426,123.31,123.26,37.0030054]
[1741883241619,55.65265426,123.31,123.26,37.0030054]
[1741883241825,55.65265426,123.3,123.25,45.1163054]
[1741883242122,26.75864886,123.32,123.26,37.0030054]
[1741883242316,37.0030054,123.31,123.26,37.0030054]
[1741883242910,63.76165426,123.32,123.27,37.0030054]
[1741883243111,37.0030054,123.31,123.26,37.0030054]
[1741883243637,45.1130054,123.31,123.26,45.1157054]
[1741883245137,37.0030054,123.31,123.26,45.1157054]
[1741883245509,45.1127054,123.31,123.26,45.1157054]
[1741883246209,37.0030054,123.31,123.26,45.1157054]
[1741883247433,119.1030054,123.33,123.28,37.0030054]
[1741883247641,82.1,123.33,123.29,37.0030054]
[1741883247860,37.0030054,123.34,123.29,37.0030054]
[1741883248819,37.0030054,123.36,123.31,37.0030054]
[1741883249123,119.1030054,123.38,123.33,37.0030054]
[1741883249336,41.07030568,123.4,123.35,37.0030054]
[1741883249557,41.07030568,123.4,123.36,8.1063]
[1741883249738,41.07030568,123.4,123.34,37.0030054]
[1741883250038,41.07030568,123.4,123.33,20.2704]
[1741883250039,37.0030054,123.38,123.33,37.0030054]
[1741883250621,37.0030054,123.37,123.32,37.0030054]
[1741883250929,37.0030054,123.38,123.33,37.0030054]
[1741883251326,37.0030054,123.39,123.34,37.0030054]
[1741883251535,0.063,123.4,123.36,37.0030054]
[1741883251832,0.063,123.4,123.37,37.0030054]
[1741883252537,0.063,123.4,123.36,37.0030054]
[1741883252719,0.063,123.4,123.37,37.0030054]
[1741883253627,0.063,123.4,123.38,45.1080054]
[1741883254543,0.063,123.4,123.37,37.0030054]
[1741883254747,0.063,123.4,123.36,44.6891054]
[1741883255548,0.063,123.4,123.36,52.7952054]
[1741883256435,0.063,123.4,123.36,38.89474455]
[1741883256634,0.063,123.4,123.37,23.10254455]
[1741883257135,0.063,123.4,123.36,38.89474455]
[1741883257443,0.063,123.4,123.37,23.10254455]
[1741883258148,0.063,123.4,123.36,38.89474455]
[1741883258524,0.063,123.4,123.37,23.10254455]
[1741883258724,0.063,123.4,123.39,23.10254455]
[1741883259633,0.063,123.4,123.39,31.20684455]
[1741883260224,0.063,123.4,123.36,7.6861]
[1741883260425,0.063,123.4,123.36,31.20864455]
[1741883260758,0.063,123.4,123.33,117.0577]
[1741883260759,23.10254455,123.39,123.34,31.20974455]
[1741883261036,23.10254455,123.38,123.34,23.10254455]
[1741883261238,0.063,123.4,123.35,23.10254455]
[1741883261239,23.16554455,123.4,123.35,23.10254455]
[1741883261444,23.16554455,123.4,123.36,23.10254455]
[1741883261638,0.063,123.4,123.36,23.10254455]
[1741883261846,0.063,123.4,123.37,8.1056]
[1741883262141,31.26924455,123.4,123.35,23.10254455]
[1741883263242,23.16554455,123.4,123.36,23.10254455]
[1741883263446,0.063,123.4,123.36,23.10254455]
[1741883263647,23.10254455,123.39,123.34,31.20994455]
[1741883264027,8.1668,123.4,123.34,31.20994455]
[1741883264028,31.26934455,123.4,123.34,31.20994455]
[1741883264348,23.10254455,123.39,123.34,31.20994455]
[1741883264541,31.26934455,123.4,123.34,31.20994455]
[1741883264935,31.26934455,123.4,123.35,31.20894455]
[1741883266327,31.26934455,123.4,123.35,23.10254455]
[1741883267033,31.26934455,123.4,123.35,31.20934455]
[1741883267234,23.10254455,123.38,123.34,20.0]
[1741883267649,23.10254455,123.39,123.34,43.10254455]
[1741883268264,23.10254455,123.39,123.34,51.20964455]
[1741883268447,23.16554455,123.4,123.35,23.10254455]
[1741883268646,31.26924455,123.4,123.35,23.10254455]
[1741883268955,23.10254455,123.39,123.34,28.1071]
[1741883269140,23.10254455,123.39,123.34,51.20964455]
[1741883269752,23.10254455,123.38,123.34,20.0]
[1741883270062,23.10254455,123.39,123.34,51.21014455]
[1741883270391,31.26924455,123.4,123.34,51.21014455]
[1741883270563,23.10254455,123.39,123.34,51.21014455]
[1741883270860,23.10254455,123.39,123.34,43.10254455]
[1741883271157,23.10254455,123.39,123.34,20.0]
[1741883272538,8.105,123.38,123.34,20.0]
[1741883272739,31.20714455,123.39,123.34,51.21014455]
[1741883272947,31.26934455,123.4,123.35,23.10254455]
[1741883273243,23.10254455,123.39,123.33,8.1079]
[1741883273468,8.1668,123.4,123.35,23.10254455]
[1741883273748,31.26934455,123.4,123.35,23.10254455]
[1741883274254,8.1668,123.4,123.35,23.10254455]
[1741883274444,31.26934455,123.4,123.35,31.20894455]
[1741883274645,31.26934455,123.4,123.34,31.20984455]
[1741883275547,23.10254455,123.39,123.34,31.20984455]
[1741883275850,23.10254455,123.39,123.34,23.10254455]
[1741883276041,23.10254455,123.38,123.33,43.10254455]
[1741883276439,23.10254455,123.38,123.33,20.0]
[1741883276647,31.20814455,123.37,123.33,20.0]
[1741883276845,8.1056,123.37,123.33,20.0]
[1741883277046,8.1056,123.37,123.33,43.10254455]
[1741883277356,8.1056,123.37,123.33,51.21074455]
[1741883278044,8.1056,123.37,123.33,43.10254455]
[1741883278243,23.10254455,123.36,123.31,23.10254455]
[1741883278442,23.10254455,123.36,123.29,20.2771]
[1741883278443,1.5571,123.35,123.29,8.1106]
[1741883278645,23.10254455,123.32,123.28,214.6]
[1741883278846,23.10254455,123.33,123.28,245.81404455]
[1741883279046,23.10254455,123.33,123.28,237.70254455]
[1741883279240,23.10254455,123.33,123.28,245.81404455]
[1741883280260,8.1076,123.34,123.29,23.10254455]
[1741883280450,48.68231655,123.33,123.28,23.10254455]
[1741883280650,41.75219341,123.29,123.26,0.03]
[1741883280957,23.10254455,123.27,123.26,0.03]
[1741883281362,42.03651655,123.27,123.26,0.03]
[1741883282435,48.68231655,123.27,123.26,0.03]
[1741883282641,56.79451655,123.27,123.26,0.03]
[1741883287259,136.5,123.22,123.16,8.1195]
[1741883287567,31.24254455,123.23,123.18,23.10254455]
[1741883288341,8.14,123.23,123.19,23.10254455]
[1741883288757,31.24254455,123.23,123.18,23.10254455]
[1741883288957,39.35754455,123.23,123.18,23.10254455]
[1741883289162,23.10254455,123.22,123.17,23.10254455]
[1741883289557,23.10254455,123.21,123.16,43.10254455]
[1741883289759,23.10254455,123.22,123.17,23.10254455]
[1741883290165,23.10254455,123.22,123.17,23.13254455]
[1741883290749,12.20448162,123.23,123.18,31.22074455]
[1741883290947,31.24254455,123.23,123.18,31.22074455]
[1741883291148,23.10254455,123.25,123.2,23.10254455]
[1741883291363,117.12511043,123.26,123.22,23.10254455]
[1741883291364,82.1,123.26,123.22,23.10254455]
[1741883291558,31.21434455,123.28,123.23,23.10254455]
[1741883291866,23.10254455,123.27,123.22,23.10254455]
[1741883292254,23.10254455,123.26,123.2,8.12]
[1741883292448,23.10254455,123.26,123.21,23.10254455]
[1741883292649,23.10254455,123.23,123.18,14.7826]
[1741883292845,31.21744455,123.23,123.18,23.10254455]
[1741883293049,23.10254455,123.21,123.17,0.03]
[1741883293244,23.10254455,123.22,123.17,31.25134455]
[1741883293450,82.1,123.25,123.19,23.10254455]
[1741883293651,105.20254455,123.25,123.2,23.10254455]
[1741883293844,113.31614455,123.25,123.2,23.10254455]
[1741883294050,113.31614455,123.25,123.17,28.4459]
[1741883294051,23.10254455,123.22,123.17,8.1488]
[1741883294252,23.10254455,123.22,123.17,31.25134455]
[1741883294451,23.10254455,123.22,123.17,8.1488]
[1741883294649,23.10254455,123.23,123.18,23.10254455]
[1741883294858,23.10254455,123.23,123.18,31.22024455]
[1741883295259,105.34470612,123.25,123.2,23.10254455]
[1741883295767,23.10254455,123.24,123.18,28.4132]
[1741883296068,23.10254455,123.24,123.19,23.10254455]
[1741883296665,105.20254455,123.25,123.2,23.10254455]
[1741883296865,23.10254455,123.26,123.21,23.10254455]
[1741883297873,23.10254455,123.25,123.2,31.21934455]
[1741883298471,23.10254455,123.26,123.21,23.10254455]
[1741883298969,23.10254455,123.25,123.2,31.21934455]
[1741883299174,23.10254455,123.24,123.2,8.1168]
[1741883299374,23.10254455,123.23,123.18,31.20254455]
[1741883299558,23.10254455,123.23,123.18,39.32044455]
[1741883299754,23.10254455,123.23,123.18,31.22044455]
[1741883300154,23.10254455,123.23,123.17,8.1488]
[1741883300356,23.10254455,123.22,123.17,31.25134455]
[1741883300956,31.21764455,123.23,123.18,23.10254455]
[1741883301163,23.10254455,123.2,123.17,0.03]
[1741883301659,18.79181043,123.22,123.17,0.03]
[1741883301660,23.10254455,123.19,123.17,0.03]
[1741883301864,23.10254455,123.18,123.17,0.03]
[1741883302285,73.2572611,123.18,123.17,0.03]
[1741883302457,74.8520611,123.18,123.17,0.03]
[1741883303290,6.2472,123.16,123.13,0.03]
[1741883303570,42.03651655,123.14,123.13,0.03]
[1741883303753,50.27651655,123.14,123.13,0.03]
[1741883304167,58.39731655,123.14,123.13,0.03]
[1741883304369,58.39731655,123.14,123.11,0.03]
[1741883304370,0.14216157,123.12,123.11,0.03]
[1741883304555,0.9179,123.11,122.98,137.0]
[1741883304755,0.14216157,123.06,122.96,8.1327]
[1741883304960,37.15727018,123.04,122.99,37.15727018]
[1741883305271,37.15727018,123.04,122.96,8.1327]
[1741883305576,37.15727018,123.04,122.99,37.15727018]
[1741883306077,37.15727018,123.03,122.96,8.1327]
[1741883306373,37.15727018,122.99,122.94,37.15727018]
[1741883306579,109.353972,123.02,122.92,15.74560491]
[1741883306875,37.15727018,122.94,122.92,7.61030491]
[1741883307179,37.15727018,122.96,122.92,7.61030491]
[1741883307563,37.15727018,122.95,122.92,7.61030491]
[1741883308067,90.46,122.97,122.92,7.61030491]
[1741883308068,127.61727018,122.97,122.92,37.15727018]
[1741883308278,41.24355248,123.0,122.95,37.15727018]
[1741883308484,82.15380782,123.0,122.94,37.15727018]
[1741883308686,4.0862823,123.0,122.97,37.15727018]
[1741883308863,4.0862823,123.0,122.96,37.15727018]
[1741883309180,37.15727018,123.0,122.95,37.15727018]
[1741883309374,37.15727018,123.0,122.92,16.5149]
[1741883309577,37.15727018,123.01,122.95,37.15727018]
[1741883309878,37.15727018,123.0,122.94,37.15727018]
[1741883310072,82.1,123.03,122.95,0.14216157]
[1741883310276,12.27686173,123.05,123.0,37.15727018]
[1741883310581,49.43413191,123.05,122.99,37.15727018]
[1741883310764,37.15727018,123.05,123.0,37.15727018]
[1741883310962,131.53413191,123.07,123.02,37.15727018]
[1741883311165,12.27686173,123.07,123.04,37.15727018]
[1741883311474,12.27686173,123.07,123.05,37.15727018]
[1741883312058,12.27686173,123.07,123.03,37.15727018]
[1741883312362,37.15727018,123.04,122.98,37.15727018]
[1741883312565,37.15727018,123.01,122.96,37.15727018]
[1741883312777,0.28432314,123.03,122.94,8.134]
[1741883312973,8.64216157,123.03,122.96,37.15727018]
[1741883313178,37.15727018,123.0,122.94,45.29127018]
[1741883313371,37.15727018,122.98,122.93,37.15727018]
[1741883313874,18.79181043,123.01,122.92,37.15727018]
[1741883313875,37.15727018,122.97,122.92,37.15727018]
[1741883314075,37.15727018,122.98,122.93,37.15727018]
[1741883314280,37.15727018,122.99,122.94,37.15727018]
[1741883314579,37.15727018,122.96,122.9,8.1366]
[1741883314778,37.15727018,122.96,122.91,37.15727018]
[1741883315267,37.15727018,122.98,122.92,37.15727018]
[1741883315666,37.15727018,122.97,122.92,37.15727018]
[1741883315863,37.15727018,122.98,122.92,37.15727018]
[1741883316067,37.15727018,122.98,122.93,37.15727018]
[1741883316570,37.15727018,122.97,122.92,37.15727018]
[1741883316975,37.15727018,122.95,122.88,214.96]
[1741883317182,18.79181043,122.97,122.89,37.15727018]
[1741883317183,37.15727018,122.94,122.89,37.15727018]
[1741883317372,82.24216157,122.96,122.9,37.15727018]
[1741883317373,55.94908061,122.95,122.9,37.15727018]
[1741883318064,37.15727018,122.92,122.87,37.15727018]
[1741883318264,37.15727018,122.91,122.86,37.15727018]
[1741883318489,37.15727018,122.89,122.84,37.18727018]
[1741883319161,37.15727018,122.9,122.84,37.18727018]
[1741883319369,37.15727018,122.89,122.84,37.18727018]
[1741883319877,37.15727018,122.9,122.84,37.18727018]
[1741883320066,37.15727018,122.89,122.84,37.18727018]
[1741883320268,57.15727018,122.85,122.84,0.03]
[1741883320571,18.79181043,122.83,122.76,37.15727018]
[1741883320772,18.79181043,122.83,122.74,8.1471]
[1741883320773,37.15727018,122.81,122.74,8.1471]
[1741883320971,14.6416,122.83,122.7,81.0]
[1741883321177,37.15727018,122.81,122.76,37.15727018]
[1741883321376,37.15727018,122.82,122.77,37.15727018]
[1741883321983,82.1,122.83,122.79,37.15727018]
[1741883322190,8.1413,122.83,122.71,20.3729]
[1741883322498,82.1,122.86,122.71,20.3729]
[1741883322499,37.15727018,122.86,122.81,37.15727018]
[1741883322785,18.79181043,122.88,122.81,37.15727018]
[1741883322988,37.15727018,122.89,122.84,37.15727018]
[1741883323205,37.15727018,122.88,122.83,37.15727018]
[1741883323396,18.79181043,122.9,122.81,37.15727018]
[1741883323397,37.15727018,122.87,122.81,37.15727018]
[1741883323574,37.15727018,122.86,122.81,37.15727018]
[1741883323777,37.15727018,122.83,122.77,37.15727018]
[1741883324098,37.15727018,122.81,122.76,37.15727018]
[1741883324299,55.99346311,122.82,122.77,55.99346311]
[1741883324490,55.99346311,122.83,122.78,55.99346311]
[1741883325073,55.99346311,122.79,122.74,55.99346311]
[1741883325301,100.74964886,122.82,122.75,55.99346311]
[1741883325599,55.99346311,122.77,122.68,8.1512]
[1741883325779,55.99346311,122.77,122.7,55.99346311]
[1741883325780,0.14216157,122.77,122.7,55.99346311]
[1741883325980,55.99346311,122.76,122.68,8.1512]
[1741883326177,55.99346311,122.77,122.72,55.99346311]
[1741883326392,8.86,122.78,122.73,55.99346311]
[1741883326595,8.86,122.78,122.74,55.99346311]
[1741883326994,55.99346311,122.76,122.71,56.02346311]
[1741883327380,55.99346311,122.77,122.71,56.02346311]
[1741883327582,55.99346311,122.76,122.71,56.02346311]
[1741883327982,74.64311197,122.77,122.71,56.02346311]
[1741883328291,18.64964886,122.75,122.71,56.02346311]
[1741883328499,55.99346311,122.74,122.71,0.03]
[1741883328884,55.99346311,122.73,122.71,0.03]
[1741883329087,55.99346311,122.72,122.71,0.03]
[1741883329276,82.78911197,122.76,122.71,0.03]
[1741883329277,55.99346311,122.74,122.71,0.03]
[1741883330181,55.99346311,122.73,122.71,0.03]
[1741883330493,55.99346311,122.74,122.71,0.03]
[1741883330693,55.99346311,122.72,122.71,0.03]
[1741883331395,55.99346311,122.77,122.71,56.02346311]
[1741883331696,155.15826311,122.78,122.73,55.99346311]
[1741883331889,55.99346311,122.77,122.72,55.99346311]
[1741883332087,90.2424,122.82,122.75,55.99346311]
[1741883332299,55.99346311,122.81,122.75,64.13976311]
[1741883332691,55.99346311,122.79,122.72,8.1485]
[1741883332891,138.09346311,122.82,122.77,55.99346311]
[1741883333090,82.1,122.82,122.77,55.99346311]
[1741883333290,138.09346311,122.82,122.73,0.28432314]
[1741883333590,55.99346311,122.83,122.72,28.52]
[1741883333785,55.99346311,122.83,122.78,55.99346311]
[1741883333991,55.99346311,122.81,122.76,55.99346311]
[1741883334190,55.99346311,122.81,122.75,8.94]
[1741883334191,55.99346311,122.82,122.77,55.99346311]
[1741883334596,4.18021067,122.85,122.79,55.99346311]
[1741883334597,26.78984886,122.85,122.79,55.99346311]
[1741883334888,55.99346311,122.82,122.77,64.13866311]
[1741883335084,26.78984886,122.85,122.77,64.13866311]
[1741883335288,55.99346311,122.82,122.77,64.13866311]
[1741883335488,55.99346311,122.83,122.77,64.13866311]
[1741883335684,55.99346311,122.84,122.78,55.99346311]
[1741883335884,55.99346311,122.85,122.8,55.99346311]
[1741883336095,55.99346311,122.86,122.8,55.99346311]
[1741883336296,55.99346311,122.85,122.79,55.99346311]
[1741883336483,55.99346311,122.86,122.81,55.99346311]
[1741883336690,55.99346311,122.87,122.81,55.99346311]
[1741883336878,55.99346311,122.88,122.82,55.99346311]
[1741883337100,55.99346311,122.88,122.83,55.99346311]
[1741883337407,82.1,122.9,122.84,55.99346311]
[1741883337601,138.09346311,122.9,122.84,55.99346311]
[1741883337926,55.99346311,122.89,122.83,55.99346311]
[1741883338102,82.1,122.9,122.85,55.99346311]
[1741883338409,82.1,122.9,122.86,55.99346311]
[1741883338786,138.09346311,122.9,122.85,55.99346311]
[1741883339288,82.1,122.9,122.85,55.99346311]
[1741883339885,138.09346311,122.9,122.85,55.99346311]
[1741883340089,55.99346311,122.89,122.83,64.13476311]
[1741883340304,55.99346311,122.88,122.83,64.13476311]
[1741883340696,55.99346311,122.89,122.84,55.99346311]
[1741883341413,146.23026311,122.9,122.84,64.13386311]
[1741883341913,146.23026311,122.9,122.85,55.99346311]
[1741883342295,55.99346311,122.89,122.84,64.13386311]
[1741883342686,55.99346311,122.88,122.8,312.0]
[1741883342891,82.1,122.9,122.83,55.99346311]
[1741883343087,8.1365,122.91,122.85,55.99346311]
[1741883343313,64.12996311,122.91,122.85,55.99346311]
[1741883343491,0.063,122.95,122.9,55.99346311]
[1741883343810,0.063,122.95,122.93,55.99346311]
[1741883344010,0.063,122.95,122.94,55.99346311]
[1741883344804,0.063,122.95,122.93,55.99346311]
[1741883345002,55.99346311,122.97,122.89,8.1373]
[1741883345307,55.99346311,122.99,122.94,55.99346311]
[1741883345509,55.99346311,122.97,122.92,55.99346311]
[1741883346011,138.09346311,123.0,122.95,55.99346311]
[1741883346308,82.1,123.0,122.96,55.99346311]
[1741883346513,82.1,123.0,122.98,55.99346311]
[1741883346688,55.99346311,123.03,122.98,64.12476311]
[1741883346891,55.99346311,123.03,122.98,55.99346311]
[1741883347103,64.12186311,123.03,122.98,55.99346311]
[1741883348197,55.99346311,123.02,122.97,55.99346311]
[1741883348410,55.99346311,123.02,122.94,55.99346311]
[1741883348619,55.99346311,123.02,122.97,55.99346311]
[1741883348920,55.99346311,123.03,122.98,55.99346311]
[1741883349215,55.99346311,123.0,122.95,55.99346311]
[1741883349804,55.99346311,123.02,122.97,55.99346311]
[1741883350397,55.99346311,123.01,122.96,55.99346311]
[1741883350797,64.12266311,123.02,122.97,55.99346311]
[1741883351017,55.99346311,123.03,122.98,55.99346311]
[1741883351716,55.99346311,123.01,122.92,20.3367]
[1741883352014,18.64964886,123.03,122.95,55.99346311]
[1741883352015,55.99346311,123.0,122.95,55.99346311]
[1741883352414,55.99346311,122.99,122.94,55.99346311]
[1741883352612,55.99346311,122.98,122.93,64.12806311]
[1741883352819,64.12586311,122.97,122.92,55.99346311]
[1741883352994,55.99346311,122.98,122.93,55.99346311]
[1741883353502,55.99346311,122.99,122.93,55.99346311]
[1741883354095,55.99346311,122.99,122.94,55.99346311]
[1741883354301,146.22306311,123.01,122.95,55.99346311]
[1741883354512,55.99346311,123.0,122.95,55.99346311]
[1741883354816,146.22306311,123.01,122.96,55.99346311]
[1741883355017,82.1,123.01,122.97,55.99346311]
[1741883355219,146.22286311,123.01,122.96,55.99346311]
[1741883355598,55.99346311,123.0,122.95,55.99346311]
[1741883355800,146.22286311,123.01,122.95,55.99346311]
[1741883356017,55.99346311,123.0,122.95,55.99346311]
[1741883356397,64.12406311,123.0,122.95,55.99346311]
[1741883356595,55.99346311,123.0,122.95,64.12676311]
[1741883356800,146.22336311,123.01,122.95,64.12676311]
[1741883357199,146.22336311,123.01,122.95,55.99346311]
[1741883357409,55.99346311,123.0,122.95,64.12676311]
[1741883357620,55.99346311,122.98,122.9,28.478]
[1741883357924,55.99346311,122.98,122.93,55.99346311]
[1741883358713,8.13,123.0,122.95,55.99346311]
[1741883359200,138.09346311,123.01,122.97,55.99346311]
[1741883359201,82.1,123.01,122.97,55.99346311]
[1741883359402,82.1,123.01,122.98,55.99346311]
[1741883359611,150.29664062,123.05,123.0,55.99346311]
[1741883359808,150.29664062,123.05,123.01,55.99346311]
[1741883359809,82.1,123.05,123.01,55.99346311]
[1741883360118,64.11916311,123.07,123.02,55.99346311]
[1741883360507,55.99346311,123.06,123.01,55.99346311]
[1741883361116,64.11916311,123.07,123.02,55.99346311]
[1741883361335,55.99346311,123.06,123.01,55.99346311]
[1741883362133,55.99346311,123.02,122.97,55.99346311]
[1741883362325,55.99346311,123.01,122.96,55.99346311]
[1741883362636,55.99346311,123.02,122.96,55.99346311]
[1741883362926,8.129,123.02,122.97,55.99346311]
[1741883363431,64.12246311,123.02,122.97,55.99346311]
[1741883363824,64.93346311,123.04,122.99,55.99346311]
[1741883364203,8.94,123.04,123.0,55.99346311]
[1741883364404,146.22026311,123.05,123.0,55.99346311]
[1741883364626,55.99346311,123.04,122.99,55.99346311]
[1741883365020,82.1,123.05,122.95,20.3634]
[1741883365021,64.12146311,123.03,122.98,55.99346311]
[1741883365829,8.128,123.03,122.98,55.99346311]
[1741883366230,64.12116311,123.04,122.98,55.99346311]
[1741883366430,64.12116311,123.04,122.99,55.99346311]
[1741883366607,146.22046311,123.05,122.99,55.99346311]
[1741883367010,55.99346311,123.04,122.99,55.99346311]
[1741883367433,55.99346311,123.04,122.98,55.99346311]
[1741883367636,55.99346311,123.03,122.97,55.99346311]
[1741883368634,55.99346311,123.03,122.98,55.99346311]
[1741883369011,8.1287,123.02,122.98,55.99346311]
[1741883370023,8.1282,123.03,122.98,64.12476311]
[1741883370731,55.99346311,123.04,122.99,55.99346311]
[1741883370915,64.12116311,123.04,122.99,55.99346311]
[1741883371120,90.227,123.05,123.01,55.99346311]
[1741883371325,82.1,123.05,123.03,55.99346311]
[1741883371514,78.53310607,123.08,123.02,55.99346311]
[1741883371712,65.67546311,123.08,123.03,55.99346311]
[1741883371921,100.74964886,123.09,123.0,55.99346311]
[1741883371922,146.21766311,123.09,123.04,55.99346311]
[1741883372131,55.99346311,123.07,123.02,55.99346311]
[1741883372319,55.99346311,123.08,123.02,55.99346311]
[1741883372536,55.99346311,123.08,123.03,55.99346311]
[1741883372923,55.99346311,123.07,123.02,55.99346311]
[1741883373129,64.11956311,123.06,123.01,55.99346311]
[1741883373450,8.1261,123.06,123.02,55.99346311]
[1741883373945,55.99346311,123.05,123.0,55.99346311]
[1741883374152,64.11906311,123.07,123.02,55.99346311]
[1741883374451,37.17514196,123.06,123.01,37.17514196]
[1741883375315,57.48874196,123.07,123.01,37.17514196]
[1741883376544,37.17514196,123.07,123.01,8.1293]
[1741883376741,8.1247,123.08,123.04,37.17514196]
[1741883377122,119.27514196,123.09,123.04,37.17514196]
[1741883377448,127.39954196,123.09,123.04,37.17514196]
[1741883377653,127.39954196,123.09,123.04,45.30244196]
[1741883377856,127.39954196,123.09,123.04,37.17514196]
[1741883378152,0.063,123.08,123.04,37.17514196]
[1741883378539,55.88779082,123.08,123.03,37.17514196]
[1741883379045,37.17514196,123.07,123.02,37.17514196]
[1741883379722,8.1261,123.06,123.02,37.17514196]
[1741883380226,45.30124196,123.06,123.01,37.17514196]
[1741883380957,8.1261,123.06,123.02,37.17514196]
[1741883381325,45.30124196,123.06,123.01,37.17514196]
[1741883381526,45.30314196,123.03,122.98,37.20514196]
[1741883382025,8.128,123.03,122.98,37.20514196]
[1741883382441,45.30314196,123.03,122.98,37.20514196]
[1741883383330,8.128,123.03,122.99,37.17514196]
[1741883383926,8.1275,123.04,123.01,37.17514196]
[1741883384235,8.1275,123.04,123.0,37.17514196]
[1741883384746,8.1275,123.04,122.99,37.17514196]
[1741883386032,8.1275,123.04,122.98,8.1611]
[1741883386236,8.1275,123.04,123.0,37.17514196]
[1741883386846,8.1275,123.04,122.99,37.17514196]